[Event "*** SCC Grand Prix: Titled Tuesday Blitz"]
[Site "Chess.com"]
[Date "2020.06.09"]
[Round "3"]
[White "Guenplen"]
[Black "AndrewMaco"]
[Result "1/2-1/2"]
[WhiteElo "2910"]
[BlackElo "2672"]
[TimeControl "180+1"]
[EndTime "9:29:15 PDT"]
[Termination "Game drawn by repetition"]

1. d4 {[%clk 0:03:00.9]} 1... Nf6 {[%clk 0:02:59.9]} 2. Bf4 {[%clk 0:03:00.2]}
2... d5 {[%clk 0:02:57.4]} 3. e3 {[%clk 0:02:59.9]} 3... e6 {[%clk 0:02:57.9]}
4. Nd2 {[%clk 0:02:58.4]} 4... Bd6 {[%clk 0:02:58.2]} 5. Bg3 {[%clk 0:02:58.1]}
5... O-O {[%clk 0:02:58.4]} 6. Ngf3 {[%clk 0:02:57.8]} 6... c5 {[%clk
0:02:58.5]} 7. c3 {[%clk 0:02:57.6]} 7... Qc7 {[%clk 0:02:57.9]} 8. dxc5 {[%clk
0:02:55.8]} 8... Qxc5 {[%clk 0:02:58.8]} 9. Bd3 {[%clk 0:02:55.7]} 9... Nbd7
{[%clk 0:02:54.3]} 10. Qe2 {[%clk 0:02:48.3]} 10... h6 {[%clk 0:02:22.9]} 11. e4
{[%clk 0:02:45.5]} 11... dxe4 {[%clk 0:02:18.3]} 12. Bxe4 {[%clk 0:02:46.4]}
12... Bxg3 {[%clk 0:02:16.3]} 13. hxg3 {[%clk 0:02:47.3]} 13... Rb8 {[%clk
0:02:16.5]} 14. O-O {[%clk 0:02:40.4]} 14... b6 {[%clk 0:01:59.7]} 15. Rfd1
{[%clk 0:02:38.1]} 15... Qc7 {[%clk 0:01:59.7]} 16. Nb3 {[%clk 0:02:17.2]} 16...
Nxe4 {[%clk 0:01:39.4]} 17. Qxe4 {[%clk 0:02:18.1]} 17... Bb7 {[%clk 0:01:38.5]}
18. Qf4 {[%clk 0:02:15.1]} 18... Qxf4 {[%clk 0:01:35.6]} 19. gxf4 {[%clk
0:02:16]} 19... Nf6 {[%clk 0:01:28.8]} 20. Ne5 {[%clk 0:02:13.1]} 20... Rfd8
{[%clk 0:01:26.2]} 21. Nd4 {[%clk 0:02:08.5]} 21... a6 {[%clk 0:01:05.9]} 22.
Ndc6 {[%clk 0:02:04.2]} 22... Rxd1+ {[%clk 0:00:58.6]} 23. Rxd1 {[%clk
0:02:03.7]} 23... Bxc6 {[%clk 0:00:59.2]} 24. Nxc6 {[%clk 0:02:03.8]} 24... Re8
{[%clk 0:00:54.7]} 25. c4 {[%clk 0:01:59.9]} 25... Kf8 {[%clk 0:00:53.6]} 26. b3
{[%clk 0:01:54.8]} 26... Rc8 {[%clk 0:00:50.7]} 27. Ne5 {[%clk 0:01:53.8]} 27...
Ke7 {[%clk 0:00:48.8]} 28. f3 {[%clk 0:01:46.3]} 28... Rc7 {[%clk 0:00:49]} 29.
Kf2 {[%clk 0:01:39.9]} 29... Nd7 {[%clk 0:00:46.9]} 30. Ke3 {[%clk 0:01:32.8]}
30... Nc5 {[%clk 0:00:41.6]} 31. g4 {[%clk 0:01:16.2]} 31... Nb7 {[%clk
0:00:38.6]} 32. g5 {[%clk 0:01:04]} 32... h5 {[%clk 0:00:36.7]} 33. g6 {[%clk
0:01:01.6]} 33... f6 {[%clk 0:00:30.6]} 34. Nf7 {[%clk 0:01:01]} 34... a5 {[%clk
0:00:20.6]} 35. f5 {[%clk 0:00:51]} 35... Rc5 {[%clk 0:00:19.7]} 36. fxe6 {[%clk
0:00:45.5]} 36... Kxe6 {[%clk 0:00:19.9]} 37. Ke4 {[%clk 0:00:24.3]} 37... h4
{[%clk 0:00:18.5]} 38. f4 {[%clk 0:00:19.1]} 38... Rh5 {[%clk 0:00:17.7]} 39.
Rh1 {[%clk 0:00:11.8]} 39... h3 {[%clk 0:00:17.5]} 40. Rh2 {[%clk 0:00:10.8]}
40... f5+ {[%clk 0:00:15.1]} 41. Kf3 {[%clk 0:00:09.4]} 41... Kf6 {[%clk
0:00:15.3]} 42. Ne5 {[%clk 0:00:09.3]} 42... Nc5 {[%clk 0:00:15.2]} 43. Kg3
{[%clk 0:00:05]} 43... Ne4+ {[%clk 0:00:15.5]} 44. Kf3 {[%clk 0:00:05.5]} 44...
Nc5 {[%clk 0:00:15.9]} 45. Kg3 {[%clk 0:00:06]} 45... Ne4+ {[%clk 0:00:16.3]}
46. Kf3 {[%clk 0:00:06.5]} 46... Nc5 {[%clk 0:00:15.4]} 1/2-1/2

[Event "*** SCC Grand Prix: Titled Tuesday Blitz"]
[Site "Chess.com"]
[Date "2020.06.09"]
[Round "3"]
[White "BogdanBelyakov89"]
[Black "LiemLe"]
[Result "1/2-1/2"]
[WhiteElo "2623"]
[BlackElo "2899"]
[TimeControl "180+1"]
[EndTime "9:29:15 PDT"]
[Termination "Game drawn by agreement"]

1. e4 {[%clk 0:03:00.9]} 1... c6 {[%clk 0:02:58.5]} 2. d4 {[%clk 0:03:00.4]}
2... d5 {[%clk 0:02:59.4]} 3. exd5 {[%clk 0:03:01.3]} 3... cxd5 {[%clk
0:02:59.6]} 4. c4 {[%clk 0:03:02]} 4... Nf6 {[%clk 0:02:59.1]} 5. Nc3 {[%clk
0:03:01.3]} 5... e6 {[%clk 0:02:59.3]} 6. Nf3 {[%clk 0:03:00.7]} 6... Nc6 {[%clk
0:02:57.4]} 7. cxd5 {[%clk 0:03:00.1]} 7... Nxd5 {[%clk 0:02:57.2]} 8. Bd3
{[%clk 0:02:59.5]} 8... Be7 {[%clk 0:02:53.1]} 9. O-O {[%clk 0:02:59]} 9... O-O
{[%clk 0:02:53.5]} 10. Qe2 {[%clk 0:02:58.1]} 10... Re8 {[%clk 0:02:45.5]} 11.
a3 {[%clk 0:02:49.1]} 11... Bf6 {[%clk 0:02:35.6]} 12. Qe4 {[%clk 0:02:44.9]}
12... g6 {[%clk 0:02:33.5]} 13. Bh6 {[%clk 0:02:40.6]} 13... b6 {[%clk
0:02:30.3]} 14. Rfe1 {[%clk 0:02:01]} 14... Bb7 {[%clk 0:02:03.5]} 15. Nxd5
{[%clk 0:02:00.4]} 15... Qxd5 {[%clk 0:02:04.4]} 16. Qf4 {[%clk 0:01:49.3]}
16... Bh8 {[%clk 0:01:33.4]} 17. Be4 {[%clk 0:01:35.7]} 17... Qd8 {[%clk
0:01:08.4]} 18. Bxc6 {[%clk 0:01:02]} 18... Bxc6 {[%clk 0:01:09.3]} 19. Ne5
{[%clk 0:01:02.4]} 19... Bxe5 {[%clk 0:01:00.7]} 20. dxe5 {[%clk 0:01:02.3]}
20... f5 {[%clk 0:00:38.5]} 21. exf6 {[%clk 0:00:59.5]} 21... Kf7 {[%clk
0:00:39.1]} 22. Rad1 {[%clk 0:00:52.2]} 22... Qxf6 {[%clk 0:00:38.3]} 23. Qc7+
{[%clk 0:00:46.1]} 23... Kg8 {[%clk 0:00:32.1]} 24. Qxc6 {[%clk 0:00:43.9]}
24... g5 {[%clk 0:00:32.4]} 25. Rd6 {[%clk 0:00:30.4]} 25... Rac8 {[%clk
0:00:30.8]} 26. Qb7 {[%clk 0:00:19.6]} 26... Qxh6 {[%clk 0:00:28.8]} 27. h3
{[%clk 0:00:15.2]} 27... Qg7 {[%clk 0:00:22.9]} 28. Qxg7+ {[%clk 0:00:13.5]}
28... Kxg7 {[%clk 0:00:23.8]} 29. Rdxe6 {[%clk 0:00:13.5]} 29... Rxe6 {[%clk
0:00:21.8]} 30. Rxe6 {[%clk 0:00:14.4]} 30... Rc1+ {[%clk 0:00:18.4]} 31. Kh2
{[%clk 0:00:14.3]} 31... Rc2 {[%clk 0:00:19.3]} 32. Re7+ {[%clk 0:00:12.9]}
32... Kg6 {[%clk 0:00:19.6]} 33. b4 {[%clk 0:00:12.5]} 33... Rxf2 {[%clk
0:00:17.7]} 34. Rxa7 {[%clk 0:00:12.2]} 34... Ra2 {[%clk 0:00:18.6]} 35. Ra6
{[%clk 0:00:11.7]} 35... Kf5 {[%clk 0:00:18.2]} 36. Rxb6 {[%clk 0:00:11.5]}
36... Rxa3 {[%clk 0:00:18.5]} 37. b5 {[%clk 0:00:11]} 37... h5 {[%clk
0:00:17.6]} 38. Rb8 {[%clk 0:00:10.7]} 38... Rb3 {[%clk 0:00:17]} 39. b6 {[%clk
0:00:10.6]} 39... Kg6 {[%clk 0:00:17.3]} 40. Kg1 {[%clk 0:00:09.4]} 40... Rb2
{[%clk 0:00:16.8]} 41. b7 {[%clk 0:00:08.8]} 41... Kg7 {[%clk 0:00:16.6]} 42. g4
{[%clk 0:00:08]} 42... hxg4 {[%clk 0:00:15.8]} 43. hxg4 {[%clk 0:00:08.9]} 43...
Kh7 {[%clk 0:00:16.2]} 44. Kf1 {[%clk 0:00:09]} 44... Kg7 {[%clk 0:00:16.8]} 45.
Ke1 {[%clk 0:00:09.5]} 45... Kh7 {[%clk 0:00:16.5]} 46. Kd1 {[%clk 0:00:09.8]}
46... Kg7 {[%clk 0:00:17.1]} 47. Kc1 {[%clk 0:00:09.4]} 1/2-1/2

[Event "*** SCC Grand Prix: Titled Tuesday Blitz"]
[Site "Chess.com"]
[Date "2020.06.09"]
[Round "3"]
[White "pooh2012"]
[Black "davidkalashian"]
[Result "1-0"]
[WhiteElo "2423"]
[BlackElo "2594"]
[TimeControl "180+1"]
[EndTime "9:29:15 PDT"]
[Termination "pooh2012 won on time"]

1. d4 {[%clk 0:03:00.9]} 1... Nf6 {[%clk 0:02:58.9]} 2. Nc3 {[%clk 0:03:00.9]}
2... d5 {[%clk 0:02:57.8]} 3. Bf4 {[%clk 0:03:00.4]} 3... c6 {[%clk 0:02:57.1]}
4. e3 {[%clk 0:02:59.8]} 4... g6 {[%clk 0:02:56.4]} 5. h4 {[%clk 0:02:55]} 5...
Bg7 {[%clk 0:02:55.5]} 6. Qd2 {[%clk 0:02:53.9]} 6... h5 {[%clk 0:02:53.8]} 7.
f3 {[%clk 0:02:51.5]} 7... Qb6 {[%clk 0:02:50.8]} 8. Na4 {[%clk 0:02:48.2]} 8...
Qd8 {[%clk 0:02:49]} 9. Ne2 {[%clk 0:02:37.4]} 9... Bf5 {[%clk 0:02:39.6]} 10.
Ng3 {[%clk 0:02:32.5]} 10... Nbd7 {[%clk 0:02:38]} 11. Nxf5 {[%clk 0:02:25.8]}
11... gxf5 {[%clk 0:02:38.9]} 12. Bd3 {[%clk 0:02:25.9]} 12... e6 {[%clk
0:02:38.1]} 13. Qb4 {[%clk 0:02:20.1]} 13... Nb6 {[%clk 0:02:28.4]} 14. Nc5
{[%clk 0:02:12.7]} 14... Bf8 {[%clk 0:02:26.4]} 15. Qc3 {[%clk 0:02:07.9]} 15...
Qc8 {[%clk 0:02:19.4]} 16. Be5 {[%clk 0:02:02.4]} 16... Be7 {[%clk 0:02:15]} 17.
O-O-O {[%clk 0:01:51.8]} 17... Rg8 {[%clk 0:02:14.4]} 18. Rdg1 {[%clk
0:01:46.8]} 18... Nfd7 {[%clk 0:02:12.9]} 19. Nxd7 {[%clk 0:01:37.9]} 19... Nxd7
{[%clk 0:02:12]} 20. Bf4 {[%clk 0:01:34.5]} 20... a6 {[%clk 0:02:06.9]} 21. g4
{[%clk 0:01:27.7]} 21... fxg4 {[%clk 0:02:03.8]} 22. fxg4 {[%clk 0:01:27.6]}
22... hxg4 {[%clk 0:02:03.9]} 23. h5 {[%clk 0:01:24.3]} 23... f5 {[%clk
0:02:03.2]} 24. h6 {[%clk 0:01:10.6]} 24... Nf6 {[%clk 0:02:03.2]} 25. Be5
{[%clk 0:01:04.5]} 25... Nh7 {[%clk 0:01:58.1]} 26. Bg7 {[%clk 0:00:54.5]} 26...
Qd7 {[%clk 0:01:56.9]} 27. Rxg4 {[%clk 0:00:44.6]} 27... Bf8 {[%clk 0:01:17.3]}
28. Rg2 {[%clk 0:00:38.6]} 28... O-O-O {[%clk 0:01:11.9]} 29. Rhg1 {[%clk
0:00:37.8]} 29... Qe7 {[%clk 0:01:02.5]} 30. Qe1 {[%clk 0:00:31.6]} 30... Re8
{[%clk 0:00:47]} 31. Qf2 {[%clk 0:00:27.1]} 31... Rd8 {[%clk 0:00:46.3]} 32. Qf4
{[%clk 0:00:26.7]} 32... Qf7 {[%clk 0:00:43.8]} 33. Rg6 {[%clk 0:00:20.6]} 33...
Bd6 {[%clk 0:00:39.7]} 34. Qf3 {[%clk 0:00:19.3]} 34... Rde8 {[%clk 0:00:38.5]}
35. Qg2 {[%clk 0:00:14.2]} 35... Kb8 {[%clk 0:00:24]} 36. Be5 {[%clk 0:00:14]}
36... Bxe5 {[%clk 0:00:15.1]} 37. Rxg8 {[%clk 0:00:11.5]} 37... Bf6 {[%clk
0:00:09]} 38. Rxe8+ {[%clk 0:00:11.1]} 38... Qxe8 {[%clk 0:00:09.9]} 39. Qg6
{[%clk 0:00:10.6]} 39... Qe7 {[%clk 0:00:08.3]} 40. Qg8+ {[%clk 0:00:09.5]}
40... Ka7 {[%clk 0:00:08.6]} 41. Rg7 {[%clk 0:00:07.5]} 41... Bxg7 {[%clk
0:00:07]} 42. hxg7 {[%clk 0:00:08.4]} 42... Nf6 {[%clk 0:00:05.8]} 43. Qf8
{[%clk 0:00:07]} 1-0

[Event "*** SCC Grand Prix: Titled Tuesday Blitz"]
[Site "Chess.com"]
[Date "2020.06.09"]
[Round "3"]
[White "kirillgenius"]
[Black "Gahan-MG"]
[Result "0-1"]
[WhiteElo "2271"]
[BlackElo "2533"]
[TimeControl "180+1"]
[EndTime "9:29:16 PDT"]
[Termination "Gahan-MG won on time"]

1. e4 {[%clk 0:03:00.9]} 1... c5 {[%clk 0:02:59.3]} 2. Nf3 {[%clk 0:03:00.2]}
2... e6 {[%clk 0:02:58.8]} 3. Nc3 {[%clk 0:03:01.1]} 3... a6 {[%clk 0:02:58.9]}
4. d4 {[%clk 0:03:01.1]} 4... cxd4 {[%clk 0:02:59.8]} 5. Nxd4 {[%clk 0:03:01.9]}
5... b5 {[%clk 0:03:00.2]} 6. g3 {[%clk 0:03:01.8]} 6... Bb7 {[%clk 0:03:00.3]}
7. Bg2 {[%clk 0:03:01.3]} 7... Qc7 {[%clk 0:02:59]} 8. O-O {[%clk 0:02:59.2]}
8... Nf6 {[%clk 0:02:56]} 9. Re1 {[%clk 0:02:57.7]} 9... d6 {[%clk 0:02:52.3]}
10. f4 {[%clk 0:02:44.3]} 10... Nbd7 {[%clk 0:02:42.8]} 11. a3 {[%clk
0:02:40.4]} 11... Be7 {[%clk 0:02:40.5]} 12. e5 {[%clk 0:02:14.7]} 12... dxe5
{[%clk 0:02:17.4]} 13. fxe5 {[%clk 0:02:15.6]} 13... Nxe5 {[%clk 0:02:16]} 14.
Bf4 {[%clk 0:02:14.3]} 14... Bxg2 {[%clk 0:02:14.1]} 15. Bxe5 {[%clk 0:02:03.9]}
15... Qb7 {[%clk 0:02:12.3]} 16. Qe2 {[%clk 0:01:32.3]} 16... Bh3 {[%clk
0:02:08.5]} 17. Nf3 {[%clk 0:01:13.8]} 17... Bg4 {[%clk 0:02:05.8]} 18. Kg2
{[%clk 0:01:00.9]} 18... O-O {[%clk 0:02:05.2]} 19. h3 {[%clk 0:01:00.2]} 19...
Bf5 {[%clk 0:02:03.5]} 20. g4 {[%clk 0:00:57.8]} 20... Bg6 {[%clk 0:02:03.8]}
21. Rad1 {[%clk 0:00:50.3]} 21... Rfd8 {[%clk 0:02:02.7]} 22. Rxd8+ {[%clk
0:00:44.5]} 22... Rxd8 {[%clk 0:02:02.2]} 23. Rd1 {[%clk 0:00:45.4]} 23... Nd5
{[%clk 0:01:45.4]} 24. Nxd5 {[%clk 0:00:40.5]} 24... Rxd5 {[%clk 0:01:45.1]} 25.
Rxd5 {[%clk 0:00:39.1]} 25... Qxd5 {[%clk 0:01:46]} 26. c3 {[%clk 0:00:34.5]}
26... Be4 {[%clk 0:01:43.5]} 27. Bd4 {[%clk 0:00:33.3]} 27... Bd6 {[%clk
0:01:34.1]} 28. Kf2 {[%clk 0:00:23.5]} 28... h6 {[%clk 0:01:26.5]} 29. Nd2
{[%clk 0:00:19.8]} 29... Bg6 {[%clk 0:01:23.9]} 30. Qf3 {[%clk 0:00:19.4]} 30...
Qxf3+ {[%clk 0:01:16.4]} 31. Nxf3 {[%clk 0:00:20.3]} 31... f6 {[%clk 0:01:14.1]}
32. Be3 {[%clk 0:00:16.8]} 32... Kf7 {[%clk 0:01:13.1]} 33. Nd4 {[%clk
0:00:14.6]} 33... Be4 {[%clk 0:01:13.4]} 34. Nb3 {[%clk 0:00:12]} 34... g5
{[%clk 0:01:12.6]} 35. Nc5 {[%clk 0:00:11.6]} 35... Bxc5 {[%clk 0:01:02.5]} 36.
Bxc5 {[%clk 0:00:12.5]} 36... a5 {[%clk 0:01:02.9]} 37. Bb6 {[%clk 0:00:11.8]}
37... a4 {[%clk 0:01:03.3]} 38. Kg3 {[%clk 0:00:08.4]} 38... e5 {[%clk
0:01:02.7]} 39. Bc5 {[%clk 0:00:07]} 39... Bg6 {[%clk 0:01:00.8]} 40. Kf3 {[%clk
0:00:06.2]} 40... Ke6 {[%clk 0:01:00.9]} 41. Bf8 {[%clk 0:00:05.7]} 41... h5
{[%clk 0:01:00.6]} 42. Bc5 {[%clk 0:00:05.4]} 42... h4 {[%clk 0:00:56.3]} 43.
Bf8 {[%clk 0:00:04.5]} 43... f5 {[%clk 0:00:54.9]} 44. Bh6 {[%clk 0:00:04.1]}
44... Kf6 {[%clk 0:00:54.3]} 45. Bf8 {[%clk 0:00:03.5]} 45... e4+ {[%clk
0:00:54.3]} 46. Ke2 {[%clk 0:00:02.8]} 46... f4 {[%clk 0:00:54.2]} 47. Bc5
{[%clk 0:00:02.2]} 47... e3 {[%clk 0:00:46.2]} 48. Kf3 {[%clk 0:00:01.6]} 48...
Bc2 {[%clk 0:00:45.8]} 49. Ba7 {[%clk 0:00:01.1]} 49... Bd1+ {[%clk 0:00:45.2]}
50. Kg2 {[%clk 0:00:01]} 50... Ke5 {[%clk 0:00:42.3]} 0-1

[Event "*** SCC Grand Prix: Titled Tuesday Blitz"]
[Site "Chess.com"]
[Date "2020.06.09"]
[Round "3"]
[White "CzechmVIII"]
[Black "ehrenfeld"]
[Result "0-1"]
[WhiteElo "2170"]
[BlackElo "2501"]
[TimeControl "180+1"]
[EndTime "9:29:17 PDT"]
[Termination "ehrenfeld won by resignation"]

1. e4 {[%clk 0:03:00.9]} 1... e5 {[%clk 0:02:59.4]} 2. Nf3 {[%clk 0:03:00.9]}
2... Nc6 {[%clk 0:02:58.7]} 3. Bb5 {[%clk 0:03:00.8]} 3... a6 {[%clk 0:02:58.7]}
4. Ba4 {[%clk 0:03:01]} 4... Nf6 {[%clk 0:02:58.9]} 5. O-O {[%clk 0:03:01.1]}
5... Be7 {[%clk 0:02:59.2]} 6. Re1 {[%clk 0:03:01.3]} 6... b5 {[%clk 0:02:59.2]}
7. Bb3 {[%clk 0:03:01.5]} 7... d6 {[%clk 0:02:59.4]} 8. c3 {[%clk 0:03:00.2]}
8... O-O {[%clk 0:02:59.1]} 9. h3 {[%clk 0:03:00.4]} 9... Na5 {[%clk 0:02:59]}
10. Bc2 {[%clk 0:03:00.3]} 10... c5 {[%clk 0:02:59.2]} 11. d4 {[%clk 0:03:00.5]}
11... Qc7 {[%clk 0:02:59.3]} 12. Nbd2 {[%clk 0:03:00.2]} 12... Bd7 {[%clk
0:02:59.2]} 13. Nf1 {[%clk 0:02:56.1]} 13... Rfe8 {[%clk 0:02:57.6]} 14. dxe5
{[%clk 0:02:49.9]} 14... dxe5 {[%clk 0:02:56.8]} 15. N3h2 {[%clk 0:02:47.4]}
15... c4 {[%clk 0:02:41.4]} 16. Ng3 {[%clk 0:02:43.8]} 16... Nb7 {[%clk
0:02:39.6]} 17. Nf5 {[%clk 0:02:39]} 17... Bxf5 {[%clk 0:02:38.3]} 18. exf5
{[%clk 0:02:38.8]} 18... Rad8 {[%clk 0:02:36.1]} 19. Qf3 {[%clk 0:02:36.1]}
19... Nc5 {[%clk 0:02:35.4]} 20. g4 {[%clk 0:02:22.2]} 20... h6 {[%clk
0:02:19.1]} 21. h4 {[%clk 0:02:13.4]} 21... e4 {[%clk 0:01:57.3]} 22. Qg2 {[%clk
0:02:10.2]} 22... Nd3 {[%clk 0:01:42.7]} 23. Rf1 {[%clk 0:02:09.8]} 23... Nd5
{[%clk 0:01:40.8]} 24. g5 {[%clk 0:01:55.6]} 24... hxg5 {[%clk 0:01:38.2]} 25.
hxg5 {[%clk 0:01:55.1]} 25... Bc5 {[%clk 0:01:31.3]} 26. Bxd3 {[%clk 0:01:35.1]}
26... cxd3 {[%clk 0:01:19.9]} 27. f6 {[%clk 0:01:28.2]} 27... e3 {[%clk
0:01:12.8]} 28. fxe3 {[%clk 0:01:22.4]} 28... Nxe3 {[%clk 0:01:11.9]} 29. Bxe3
{[%clk 0:01:18.2]} 29... Rxe3 {[%clk 0:01:09.8]} 30. Kh1 {[%clk 0:01:14.6]}
30... Rg3 {[%clk 0:00:54.2]} 31. Qe4 {[%clk 0:01:05.5]} 31... Rxg5 {[%clk
0:00:43]} 32. fxg7 {[%clk 0:01:01]} 32... Rh5 {[%clk 0:00:29.8]} 33. Qf4 {[%clk
0:01:01]} 33... Qxf4 {[%clk 0:00:22.2]} 34. Rxf4 {[%clk 0:01:00.5]} 34... d2
{[%clk 0:00:10.3]} 35. Rd1 {[%clk 0:00:57.8]} 35... Rd3 {[%clk 0:00:05.1]} 36.
Kg2 {[%clk 0:00:31.3]} 36... Rxh2+ {[%clk 0:00:04.5]} 37. Kf1 {[%clk 0:00:22]}
37... Rh1+ {[%clk 0:00:02.9]} 38. Ke2 {[%clk 0:00:22.9]} 38... Rxd1 {[%clk
0:00:03.1]} 39. Kxd1 {[%clk 0:00:23.4]} 39... Be3 {[%clk 0:00:01.8]} 40. Rf3
{[%clk 0:00:23]} 40... Kxg7 {[%clk 0:00:02]} 41. Rxe3 {[%clk 0:00:23.2]} 41...
Rxe3 {[%clk 0:00:02.1]} 42. Kxd2 {[%clk 0:00:24.1]} 42... Re6 {[%clk 0:00:02.4]}
43. c4 {[%clk 0:00:25]} 43... Kf6 {[%clk 0:00:03.1]} 44. b3 {[%clk 0:00:25.9]}
44... Ke5 {[%clk 0:00:03.8]} 45. cxb5 {[%clk 0:00:24.2]} 45... Kf4 {[%clk
0:00:03.9]} 46. a4 {[%clk 0:00:25.1]} 46... axb5 {[%clk 0:00:03.2]} 47. a5
{[%clk 0:00:24.5]} 47... b4 {[%clk 0:00:02.2]} 48. Kd3 {[%clk 0:00:24.3]} 48...
Ra6 {[%clk 0:00:03.1]} 49. Kc4 {[%clk 0:00:24.8]} 49... Rxa5 {[%clk 0:00:04]}
50. Kxb4 {[%clk 0:00:25.6]} 50... Ra8 {[%clk 0:00:04.5]} 51. Kc5 {[%clk
0:00:26.4]} 51... Ke4 {[%clk 0:00:04.8]} 52. b4 {[%clk 0:00:27.3]} 52... f5
{[%clk 0:00:05.1]} 53. b5 {[%clk 0:00:28.2]} 53... Rb8 {[%clk 0:00:05.3]} 54. b6
{[%clk 0:00:29.1]} 54... Rxb6 {[%clk 0:00:05.3]} 55. Kxb6 {[%clk 0:00:29]} 55...
f4 {[%clk 0:00:05.9]} 56. Kc6 {[%clk 0:00:29.9]} 56... f3 {[%clk 0:00:06.7]} 0-1

[Event "*** SCC Grand Prix: Titled Tuesday Blitz"]
[Site "Chess.com"]
[Date "2020.06.09"]
[Round "3"]
[White "Sanan_Sjugirov"]
[Black "Oglob71"]
[Result "0-1"]
[WhiteElo "2774"]
[BlackElo "2547"]
[TimeControl "180+1"]
[EndTime "9:29:18 PDT"]
[Termination "Oglob71 won on time"]

1. e4 {[%clk 0:03:00.9]} 1... c5 {[%clk 0:02:59.8]} 2. Nf3 {[%clk 0:03:00.5]}
2... d6 {[%clk 0:03:00.2]} 3. Bb5+ {[%clk 0:02:59.5]} 3... Bd7 {[%clk
0:02:59.1]} 4. Bxd7+ {[%clk 0:02:58.8]} 4... Qxd7 {[%clk 0:02:59.4]} 5. O-O
{[%clk 0:02:57.1]} 5... Nc6 {[%clk 0:02:58.1]} 6. c3 {[%clk 0:02:56.4]} 6... Nf6
{[%clk 0:02:57]} 7. d4 {[%clk 0:02:55.8]} 7... cxd4 {[%clk 0:02:55.1]} 8. cxd4
{[%clk 0:02:55.7]} 8... d5 {[%clk 0:02:53.7]} 9. e5 {[%clk 0:02:54.6]} 9... Ne4
{[%clk 0:02:53.9]} 10. Be3 {[%clk 0:02:38.1]} 10... e6 {[%clk 0:02:52.3]} 11.
Ne1 {[%clk 0:02:36.4]} 11... h6 {[%clk 0:02:52.4]} 12. f3 {[%clk 0:02:20.2]}
12... Ng5 {[%clk 0:02:52.2]} 13. Nd3 {[%clk 0:02:18.1]} 13... Be7 {[%clk
0:02:46.3]} 14. Nc3 {[%clk 0:02:17.4]} 14... O-O {[%clk 0:02:42.6]} 15. Qe2
{[%clk 0:02:02.7]} 15... Rac8 {[%clk 0:02:42.2]} 16. Rad1 {[%clk 0:01:47.8]}
16... Nb4 {[%clk 0:02:37.2]} 17. Nf4 {[%clk 0:01:44.6]} 17... Nh7 {[%clk
0:02:31.6]} 18. Nh5 {[%clk 0:01:42.5]} 18... Rc4 {[%clk 0:02:22.6]} 19. f4
{[%clk 0:01:30.9]} 19... g6 {[%clk 0:02:14]} 20. Ng3 {[%clk 0:01:22.9]} 20...
Rfc8 {[%clk 0:02:11.8]} 21. Nh1 {[%clk 0:01:02.1]} 21... Bf8 {[%clk 0:02:11]}
22. g4 {[%clk 0:00:56]} 22... Qe7 {[%clk 0:01:39.8]} 23. Ng3 {[%clk 0:00:48.7]}
23... Qh4 {[%clk 0:01:39.3]} 24. Kg2 {[%clk 0:00:43.1]} 24... Be7 {[%clk
0:01:36.5]} 25. Bf2 {[%clk 0:00:40.3]} 25... Bf8 {[%clk 0:01:28.7]} 26. h3
{[%clk 0:00:31]} 26... Qd8 {[%clk 0:01:26.5]} 27. f5 {[%clk 0:00:27.7]} 27...
Ng5 {[%clk 0:01:24.6]} 28. Be3 {[%clk 0:00:26.8]} 28... Ne4 {[%clk 0:01:22.2]}
29. Ngxe4 {[%clk 0:00:25]} 29... dxe4 {[%clk 0:01:22.5]} 30. fxg6 {[%clk
0:00:24.6]} 30... fxg6 {[%clk 0:01:22.5]} 31. Nxe4 {[%clk 0:00:17]} 31... Rc2
{[%clk 0:01:19]} 32. Rd2 {[%clk 0:00:16.6]} 32... Rxd2 {[%clk 0:01:11.4]} 33.
Bxd2 {[%clk 0:00:15.1]} 33... Nd5 {[%clk 0:01:11.5]} 34. Qf3 {[%clk 0:00:13.7]}
34... Qe7 {[%clk 0:01:10.2]} 35. Rf2 {[%clk 0:00:11.8]} 35... Bg7 {[%clk
0:01:08]} 36. Qb3 {[%clk 0:00:04.8]} 36... Rf8 {[%clk 0:01:00.3]} 37. Rxf8+
{[%clk 0:00:04.5]} 37... Bxf8 {[%clk 0:01:00.7]} 38. Qd3 {[%clk 0:00:05.2]}
38... Kh7 {[%clk 0:01:00.4]} 39. a3 {[%clk 0:00:04.9]} 39... Bg7 {[%clk
0:01:00.7]} 40. Qf3 {[%clk 0:00:04.8]} 40... Qd7 {[%clk 0:01:00.7]} 41. Qd3
{[%clk 0:00:04.5]} 41... Nb6 {[%clk 0:01:00.7]} 42. Kg3 {[%clk 0:00:04.1]} 42...
Qf7 {[%clk 0:01:00.1]} 43. h4 {[%clk 0:00:04]} 43... Nd5 {[%clk 0:01:00.2]} 44.
Nd6 {[%clk 0:00:03.4]} 44... Qf8 {[%clk 0:00:57.8]} 45. h5 {[%clk 0:00:03.7]}
45... Ne7 {[%clk 0:00:56]} 46. hxg6+ {[%clk 0:00:02.9]} 46... Nxg6 {[%clk
0:00:56.2]} 47. Be3 {[%clk 0:00:03]} 47... Qe7 {[%clk 0:00:49.9]} 48. Bf2 {[%clk
0:00:01.9]} 48... Qh4+ {[%clk 0:00:50.3]} 49. Kf3 {[%clk 0:00:02.4]} 49... Qh1+
{[%clk 0:00:49.4]} 50. Ke2 {[%clk 0:00:02.6]} 50... Qg2 {[%clk 0:00:46.9]} 51.
Qg3 {[%clk 0:00:02.7]} 51... Qd5 {[%clk 0:00:44.9]} 52. Kd2 {[%clk 0:00:03]}
52... Bxe5 {[%clk 0:00:42.6]} 0-1